[Event "Titled Tuesday Blitz May 4 2021"]
[White "Novikov, Evgenij"]
[Black "Lizlov, Alexey"]
[WhiteFideId "4125380"]
[BlackFideId "4179803"]
[WhiteElo "2242"]
[BlackElo "2272"]
[Result "1-0"]
[Round "07"]
[TimeControl "180+1"]
[Date "2021.05.04"]
[WhiteClock "0:00:48"]
[BlackClock "0:00:04"]

1. e4 {[%clk 0:03:00]}  c5 {[%clk 0:02:58]} 2. Nc3 {[%clk 0:03:01]}  Nc6 {[%clk 0:02:58]} 3. Nf3 {[%clk 0:03:01]}  g6 {[%clk 0:02:59]} 4. Bb5 {[%clk 0:03:01]}  Bg7 {[%clk 0:02:58]} 5. Bxc6 {[%clk 0:03:00]}  bxc6 {[%clk 0:02:59]} 6. d3 {[%clk 0:03:00]}  d6 {[%clk 0:02:57]} 7. h3 {[%clk 0:02:59]}  e5 {[%clk 0:02:52]} 8. O-O {[%clk 0:02:43]}  Ne7 {[%clk 0:02:51]} 9. Nh2 {[%clk 0:02:42]}  O-O {[%clk 0:02:41]} 10. f4 {[%clk 0:02:42]}  Rb8 {[%clk 0:01:49]} 11. Rb1 {[%clk 0:02:22]}  Qb6 {[%clk 0:01:37]} 12. Kh1 {[%clk 0:02:11]}  d5 {[%clk 0:01:25]} 13. Nf3 {[%clk 0:02:04]}  exf4 {[%clk 0:01:04]} 14. Bxf4 {[%clk 0:02:03]}  Rb7 {[%clk 0:01:03]} 15. Be5 {[%clk 0:01:45]}  c4 {[%clk 0:00:57]} 16. Bxg7 {[%clk 0:01:44]}  Kxg7 {[%clk 0:00:57]} 17. dxc4 {[%clk 0:01:43]}  dxc4 {[%clk 0:00:47]} 18. Qe2 {[%clk 0:01:39]}  Be6 {[%clk 0:00:42]} 19. Ng5 {[%clk 0:01:34]}  c5 {[%clk 0:00:39]} 20. Qf2 {[%clk 0:01:19]}  Qd6 {[%clk 0:00:25]} 21. Qf6+ {[%clk 0:01:07]}  Kg8 {[%clk 0:00:23]} 22. e5 {[%clk 0:01:08]}  Qc6 {[%clk 0:00:12]} 23. Rbd1 {[%clk 0:00:57]}  Nd5 {[%clk 0:00:10]} 24. Qf3 {[%clk 0:00:51]}  Rd7 {[%clk 0:00:07]} 25. Nxe6 {[%clk 0:00:48]}  Qxe6 {[%clk 0:00:04]} 26. Nxd5 {[%clk 0:00:48]} 1-0


[Site "https://www.chess.com"]

[Event "Titled Tuesday Blitz May 4 2021"]
[White "Novikova, Galina"]
[Black "WelshTiger"]
[WhiteFideId "4157095"]
[WhiteElo "1966"]
[BlackElo "2467"]
[Result "0-1"]
[Round "07"]
[TimeControl "180+1"]
[Date "2021.05.04"]
[WhiteClock "0:00:12"]
[BlackClock "0:00:23"]

1. e4 {[%clk 0:02:59]}  e5 {[%clk 0:02:58]} 2. Nf3 {[%clk 0:02:58]}  Nc6 {[%clk 0:02:57]} 3. d4 {[%clk 0:02:59]}  exd4 {[%clk 0:02:57]} 4. Nxd4 {[%clk 0:03:00]}  Bc5 {[%clk 0:02:55]} 5. Nb3 {[%clk 0:03:00]}  Bb6 {[%clk 0:02:55]} 6. Nc3 {[%clk 0:03:00]}  Nge7 {[%clk 0:02:54]} 7. Qe2 {[%clk 0:03:00]}  O-O {[%clk 0:02:53]} 8. Be3 {[%clk 0:03:01]}  Bxe3 {[%clk 0:02:52]} 9. Qxe3 {[%clk 0:03:01]}  d6 {[%clk 0:02:49]} 10. O-O-O {[%clk 0:03:01]}  Re8 {[%clk 0:02:48]} 11. f3 {[%clk 0:03:00]}  Be6 {[%clk 0:02:46]} 12. h4 {[%clk 0:02:58]}  a5 {[%clk 0:02:37]} 13. Nc5 {[%clk 0:02:51]}  Qc8 {[%clk 0:02:33]} 14. Nxe6 {[%clk 0:02:45]}  Qxe6 {[%clk 0:02:33]} 15. g4 {[%clk 0:02:37]}  d5 {[%clk 0:02:21]} 16. Qc5 {[%clk 0:02:13]}  dxe4 {[%clk 0:02:17]} 17. Bc4 {[%clk 0:02:14]}  Qe5 {[%clk 0:02:15]} 18. Qe3 {[%clk 0:01:48]}  Ng6 {[%clk 0:01:50]} 19. Kb1 {[%clk 0:01:40]}  exf3 {[%clk 0:01:45]} 20. Qxf3 {[%clk 0:01:40]}  Qf4 {[%clk 0:01:45]} 21. Qd5 {[%clk 0:01:20]}  Re5 {[%clk 0:01:36]} 22. Qd3 {[%clk 0:01:14]}  Nb4 {[%clk 0:01:22]} 23. Qf1 {[%clk 0:00:45]}  Re7 {[%clk 0:00:55]} 24. h5 {[%clk 0:00:44]}  Qxf1 {[%clk 0:00:52]} 25. Rhxf1 {[%clk 0:00:45]}  Ne5 {[%clk 0:00:53]} 26. Be2 {[%clk 0:00:43]}  c6 {[%clk 0:00:46]} 27. a3 {[%clk 0:00:43]}  Na6 {[%clk 0:00:46]} 28. g5 {[%clk 0:00:38]}  Nc5 {[%clk 0:00:44]} 29. Rde1 {[%clk 0:00:27]}  Ne6 {[%clk 0:00:39]} 30. Rg1 {[%clk 0:00:21]}  Nd4 {[%clk 0:00:34]} 31. Rgf1 {[%clk 0:00:12]}  Rae8 {[%clk 0:00:31]} 32. Bd1 {[%clk 0:00:11]}  Nc4 {[%clk 0:00:23]} 33. Rxe7 {[%clk 0:00:12]}  Rxe7 {[%clk 0:00:23]} 34. Bg4 {[%clk 0:00:12]}  Nd2+ {[%clk 0:00:23]} 0-1


[Site "https://www.chess.com"]

[Event "Titled Tuesday Blitz May 4 2021"]
[White "Omariev, Maksim"]
[Black "Harshavardhan G B"]
[WhiteFideId "4193423"]
[BlackFideId "25059009"]
[WhiteElo "2415"]
[BlackElo "1825"]
[Result "1-0"]
[Round "07"]
[TimeControl "180+1"]
[Date "2021.05.04"]
[WhiteClock "0:00:06"]
[BlackClock "0:00:13"]

1. g4 {[%clk 0:02:59]}  e5 {[%clk 0:02:51]} 2. Bg2 {[%clk 0:02:59]}  d5 {[%clk 0:02:40]} 3. h3 {[%clk 0:02:59]}  h5 {[%clk 0:02:27]} 4. gxh5 {[%clk 0:02:57]}  Nf6 {[%clk 0:02:16]} 5. d4 {[%clk 0:02:55]}  e4 {[%clk 0:02:15]} 6. c4 {[%clk 0:02:51]}  c6 {[%clk 0:02:13]} 7. Nc3 {[%clk 0:02:51]}  Rxh5 {[%clk 0:02:13]} 8. Qb3 {[%clk 0:02:45]}  Na6 {[%clk 0:02:10]} 9. Bf4 {[%clk 0:02:32]}  Bd6 {[%clk 0:02:04]} 10. Bxd6 {[%clk 0:02:27]}  Qxd6 {[%clk 0:02:05]} 11. e3 {[%clk 0:02:21]}  g5 {[%clk 0:02:02]} 12. Nge2 {[%clk 0:02:20]}  Rh4 {[%clk 0:01:59]} 13. O-O-O {[%clk 0:02:08]}  Nc7 {[%clk 0:01:57]} 14. cxd5 {[%clk 0:02:02]}  cxd5 {[%clk 0:01:58]} 15. Kb1 {[%clk 0:01:53]}  b6 {[%clk 0:01:56]} 16. Rc1 {[%clk 0:01:43]}  Ba6 {[%clk 0:01:54]} 17. Ng3 {[%clk 0:01:42]}  Qd7 {[%clk 0:01:48]} 18. Ka1 {[%clk 0:01:11]}  O-O-O {[%clk 0:01:45]} 19. Nb1 {[%clk 0:00:37]}  Kb8 {[%clk 0:01:43]} 20. Rc3 {[%clk 0:00:35]}  Nh5 {[%clk 0:01:36]} 21. Rhc1 {[%clk 0:00:29]}  Rc8 {[%clk 0:01:31]} 22. Na3 {[%clk 0:00:20]}  Nxg3 {[%clk 0:01:28]} 23. fxg3 {[%clk 0:00:20]}  Rh6 {[%clk 0:01:24]} 24. Nc2 {[%clk 0:00:12]}  Bb7 {[%clk 0:01:15]} 25. Nb4 {[%clk 0:00:11]}  f5 {[%clk 0:01:15]} 26. Bf1 {[%clk 0:00:08]}  a5 {[%clk 0:01:10]} 27. Nc2 {[%clk 0:00:05]}  Rf6 {[%clk 0:01:07]} 28. Na3 {[%clk 0:00:04]}  Ka7 {[%clk 0:00:56]} 29. Rxc7 {[%clk 0:00:03]}  Rxc7 {[%clk 0:00:55]} 30. Rxc7 {[%clk 0:00:04]}  Qd8 {[%clk 0:00:50]} 31. Nb5+ {[%clk 0:00:04]}  Kb8 {[%clk 0:00:49]} 32. Qc3 {[%clk 0:00:05]}  f4 {[%clk 0:00:46]} 33. gxf4 {[%clk 0:00:05]}  gxf4 {[%clk 0:00:46]} 34. exf4 {[%clk 0:00:05]}  Rxf4 {[%clk 0:00:47]} 35. Be2 {[%clk 0:00:06]}  Rf2 {[%clk 0:00:46]} 36. Qg3 {[%clk 0:00:04]}  Rxe2 {[%clk 0:00:22]} 37. Rc2+ {[%clk 0:00:04]}  Ka8 {[%clk 0:00:21]} 38. Rxe2 {[%clk 0:00:04]}  Qd7 {[%clk 0:00:18]} 39. Nc7+ {[%clk 0:00:04]}  Ka7 {[%clk 0:00:18]} 40. Rc2 {[%clk 0:00:05]}  Bc6 {[%clk 0:00:17]} 41. a3 {[%clk 0:00:04]}  Kb7 {[%clk 0:00:17]} 42. Qg6 {[%clk 0:00:02]}  Qxc7 {[%clk 0:00:16]} 43. h4 {[%clk 0:00:02]}  Qd7 {[%clk 0:00:16]} 44. h5 {[%clk 0:00:02]}  Ba4 {[%clk 0:00:16]} 45. Rc1 {[%clk 0:00:02]}  e3 {[%clk 0:00:16]} 46. h6 {[%clk 0:00:02]}  e2 {[%clk 0:00:16]} 47. Qg7 {[%clk 0:00:03]}  Qxg7 {[%clk 0:00:13]} 48. hxg7 {[%clk 0:00:04]}  Bd1 {[%clk 0:00:13]} 49. g8=Q {[%clk 0:00:04]}  e1=Q {[%clk 0:00:14]} 50. Qc8+ {[%clk 0:00:05]}  Ka7 {[%clk 0:00:13]} 51. Rc7# {[%clk 0:00:06]} 1-0


[Site "https://www.chess.com"]

[Event "Titled Tuesday Blitz May 4 2021"]
[White "Onyshchuk, Volodymyr"]
[Black "Alavkin, Arseny"]
[WhiteFideId "14114038"]
[BlackFideId "4120612"]
[WhiteElo "2605"]
[BlackElo "2416"]
[Result "1-0"]
[Round "07"]
[TimeControl "180+1"]
[Date "2021.05.04"]
[WhiteClock "0:01:54"]
[BlackClock "0:02:06"]

1. Nf3 {[%clk 0:02:54]}  Nf6 {[%clk 0:03:00]} 2. g3 {[%clk 0:02:50]}  g6 {[%clk 0:03:00]} 3. Bg2 {[%clk 0:02:51]}  Bg7 {[%clk 0:03:01]} 4. O-O {[%clk 0:02:51]}  O-O {[%clk 0:03:02]} 5. d3 {[%clk 0:02:51]}  d5 {[%clk 0:03:01]} 6. Nbd2 {[%clk 0:02:50]}  c5 {[%clk 0:03:01]} 7. e4 {[%clk 0:02:50]}  Nc6 {[%clk 0:03:01]} 8. Re1 {[%clk 0:02:49]}  e5 {[%clk 0:03:00]} 9. exd5 {[%clk 0:02:49]}  Nxd5 {[%clk 0:03:01]} 10. Nc4 {[%clk 0:02:49]}  Re8 {[%clk 0:03:02]} 11. Ng5 {[%clk 0:02:46]}  Nf6 {[%clk 0:02:52]} 12. Bxc6 {[%clk 0:02:41]}  bxc6 {[%clk 0:02:53]} 13. Nxe5 {[%clk 0:02:42]}  Qc7 {[%clk 0:02:50]} 14. Bf4 {[%clk 0:02:34]}  Nd5 {[%clk 0:02:49]} 15. Nxg6 {[%clk 0:02:31]}  Rxe1+ {[%clk 0:02:47]} 16. Qxe1 {[%clk 0:02:30]}  Qd8 {[%clk 0:02:48]} 17. Ne5 {[%clk 0:02:18]}  Nxf4 {[%clk 0:02:46]} 18. gxf4 {[%clk 0:02:16]}  Qf6 {[%clk 0:02:35]} 19. Qe3 {[%clk 0:02:09]}  Rb8 {[%clk 0:02:29]} 20. Re1 {[%clk 0:02:06]}  Bf5 {[%clk 0:02:23]} 21. b3 {[%clk 0:02:05]}  h6 {[%clk 0:02:22]} 22. Ne4 {[%clk 0:02:05]}  Qh4 {[%clk 0:02:20]} 23. Qg3 {[%clk 0:02:04]}  Qxg3+ {[%clk 0:02:12]} 24. hxg3 {[%clk 0:02:03]}  Bf8 {[%clk 0:02:09]} 25. Nf6+ {[%clk 0:01:55]}  Kg7 {[%clk 0:02:08]} 26. Nfd7 {[%clk 0:01:55]}  Rb6 {[%clk 0:02:06]} 27. Nxb6 {[%clk 0:01:54]} 1-0


[Site "https://www.chess.com"]

[Event "Titled Tuesday Blitz May 4 2021"]
[White "Ozkan, Ervin"]
[Black "Srihari L R"]
[WhiteFideId "6306004"]
[BlackFideId "46617116"]
[WhiteElo "2226"]
[BlackElo "2121"]
[Result "0-1"]
[Round "07"]
[TimeControl "180+1"]
[Date "2021.05.04"]
[WhiteClock "0:00:16"]
[BlackClock "0:00:42"]

1. d4 {[%clk 0:03:00]}  d6 {[%clk 0:02:59]} 2. Nf3 {[%clk 0:03:00]}  g6 {[%clk 0:02:58]} 3. Bf4 {[%clk 0:03:01]}  Bg7 {[%clk 0:02:59]} 4. e3 {[%clk 0:03:01]}  Nd7 {[%clk 0:02:58]} 5. h3 {[%clk 0:03:02]}  Ngf6 {[%clk 0:02:58]} 6. Bh2 {[%clk 0:03:03]}  O-O {[%clk 0:02:59]} 7. Be2 {[%clk 0:03:03]}  c6 {[%clk 0:03:00]} 8. O-O {[%clk 0:03:04]}  Qc7 {[%clk 0:02:59]} 9. c4 {[%clk 0:03:05]}  e5 {[%clk 0:03:00]} 10. Nc3 {[%clk 0:03:05]}  Re8 {[%clk 0:02:59]} 11. Rc1 {[%clk 0:02:54]}  Qb6 {[%clk 0:02:44]} 12. Qc2 {[%clk 0:02:33]}  a6 {[%clk 0:02:34]} 13. Rfd1 {[%clk 0:02:21]}  e4 {[%clk 0:02:31]} 14. Nd2 {[%clk 0:02:20]}  d5 {[%clk 0:02:31]} 15. cxd5 {[%clk 0:02:19]}  cxd5 {[%clk 0:02:30]} 16. Na4 {[%clk 0:02:13]}  Qe6 {[%clk 0:02:28]} 17. Nb3 {[%clk 0:02:09]}  Qf5 {[%clk 0:02:20]} 18. Qc7 {[%clk 0:01:59]}  Qg5 {[%clk 0:01:51]} 19. Qf4 {[%clk 0:01:54]}  Qxf4 {[%clk 0:01:45]} 20. Bxf4 {[%clk 0:01:55]}  b5 {[%clk 0:01:40]} 21. Nac5 {[%clk 0:01:54]}  Nb6 {[%clk 0:01:40]} 22. Na5 {[%clk 0:01:47]}  Nc4 {[%clk 0:01:34]} 23. Nxc4 {[%clk 0:01:33]}  dxc4 {[%clk 0:01:33]} 24. b3 {[%clk 0:01:14]}  cxb3 {[%clk 0:01:31]} 25. axb3 {[%clk 0:01:12]}  Nd5 {[%clk 0:01:31]} 26. Bg3 {[%clk 0:01:08]}  Bf5 {[%clk 0:01:22]} 27. Ra1 {[%clk 0:00:58]}  Nc3 {[%clk 0:01:02]} 28. Rd2 {[%clk 0:00:57]}  a5 {[%clk 0:00:59]} 29. Rc2 {[%clk 0:00:55]}  b4 {[%clk 0:00:56]} 30. Bc4 {[%clk 0:00:46]}  Rec8 {[%clk 0:00:52]} 31. Nb7 {[%clk 0:00:33]}  a4 {[%clk 0:00:48]} 32. bxa4 {[%clk 0:00:20]}  Rxc4 {[%clk 0:00:46]} 33. Nd6 {[%clk 0:00:20]}  Rc6 {[%clk 0:00:45]} 34. Rb2 {[%clk 0:00:16]}  Bf8 {[%clk 0:00:42]} 0-1


[Site "https://www.chess.com"]

[Event "Titled Tuesday Blitz May 4 2021"]
[White "Papasimakopoulos, Alexandros"]
[Black "Ognean, Mihnea-Ionut"]
[WhiteFideId "4244125"]
[BlackFideId "1232347"]
[WhiteElo "2352"]
[BlackElo "2012"]
[Result "1-0"]
[Round "07"]
[TimeControl "180+1"]
[Date "2021.05.04"]
[WhiteClock "0:00:36"]
[BlackClock "0:00:07"]

1. d4 {[%clk 0:03:00]}  Nf6 {[%clk 0:02:59]} 2. c4 {[%clk 0:03:01]}  e6 {[%clk 0:03:00]} 3. Nc3 {[%clk 0:03:00]}  Bb4 {[%clk 0:03:00]} 4. Qc2 {[%clk 0:03:00]}  d5 {[%clk 0:02:59]} 5. cxd5 {[%clk 0:03:00]}  exd5 {[%clk 0:03:00]} 6. Bg5 {[%clk 0:03:00]}  h6 {[%clk 0:03:01]} 7. Bh4 {[%clk 0:02:58]}  Nc6 {[%clk 0:03:01]} 8. e3 {[%clk 0:02:58]}  g5 {[%clk 0:02:59]} 9. Bg3 {[%clk 0:02:58]}  Ne4 {[%clk 0:02:59]} 10. Bb5 {[%clk 0:02:55]}  Bf5 {[%clk 0:02:45]} 11. Qb3 {[%clk 0:02:50]}  Bxc3+ {[%clk 0:02:26]} 12. bxc3 {[%clk 0:02:49]}  h5 {[%clk 0:02:25]} 13. f3 {[%clk 0:02:44]}  Nxg3 {[%clk 0:02:24]} 14. hxg3 {[%clk 0:02:45]}  Qd6 {[%clk 0:02:22]} 15. Ne2 {[%clk 0:02:40]}  h4 {[%clk 0:02:16]} 16. c4 {[%clk 0:02:28]}  dxc4 {[%clk 0:02:02]} 17. Qxc4 {[%clk 0:02:24]}  Be6 {[%clk 0:01:58]} 18. Bxc6+ {[%clk 0:02:23]}  bxc6 {[%clk 0:01:51]} 19. Qc3 {[%clk 0:02:20]}  Ke7 {[%clk 0:01:44]} 20. g4 {[%clk 0:02:13]}  Rab8 {[%clk 0:01:41]} 21. Kf2 {[%clk 0:02:09]}  Rb6 {[%clk 0:01:35]} 22. d5 {[%clk 0:01:48]}  Bxd5 {[%clk 0:01:17]} 23. Qxh8 {[%clk 0:01:46]}  f6 {[%clk 0:01:07]} 24. Rhd1 {[%clk 0:01:30]}  Rb2 {[%clk 0:01:03]} 25. Qg7+ {[%clk 0:01:27]}  Kd8 {[%clk 0:01:02]} 26. Rab1 {[%clk 0:01:27]}  Rxe2+ {[%clk 0:00:18]} 27. Kxe2 {[%clk 0:01:22]}  Kc8 {[%clk 0:00:15]} 28. Qh8+ {[%clk 0:01:14]}  Kd7 {[%clk 0:00:15]} 29. Rb8 {[%clk 0:01:10]}  Qg3 {[%clk 0:00:07]} 30. Kf1 {[%clk 0:00:36]} 1-0


[Site "https://www.chess.com"]

[Event "Titled Tuesday Blitz May 4 2021"]
[White "Pein, Jonathan"]
[Black "Shapiro, David"]
[WhiteFideId "417092"]
[BlackFideId "24133523"]
[WhiteElo "2167"]
[BlackElo "2261"]
[Result "0-1"]
[Round "07"]
[TimeControl "180+1"]
[Date "2021.05.04"]
[WhiteClock "0:00:58"]
[BlackClock "0:02:25"]

1. e4 {[%clk 0:01:56]}  c6 {[%clk 0:02:55]} 2. b3 {[%clk 0:01:55]}  d5 {[%clk 0:02:56]} 3. Bb2 {[%clk 0:01:56]}  dxe4 {[%clk 0:02:55]} 4. Nc3 {[%clk 0:01:56]}  Nf6 {[%clk 0:02:55]} 5. Nge2 {[%clk 0:01:56]}  Bf5 {[%clk 0:02:49]} 6. Ng3 {[%clk 0:01:56]}  Bg6 {[%clk 0:02:50]} 7. Qe2 {[%clk 0:01:56]}  e6 {[%clk 0:02:50]} 8. Ngxe4 {[%clk 0:01:49]}  Nbd7 {[%clk 0:02:50]} 9. g3 {[%clk 0:01:48]}  Be7 {[%clk 0:02:44]} 10. Bg2 {[%clk 0:01:48]}  O-O {[%clk 0:02:44]} 11. O-O {[%clk 0:01:49]}  Nxe4 {[%clk 0:02:42]} 12. Nxe4 {[%clk 0:01:48]}  Nf6 {[%clk 0:02:43]} 13. d3 {[%clk 0:01:42]}  Nxe4 {[%clk 0:02:40]} 14. dxe4 {[%clk 0:01:42]}  Qa5 {[%clk 0:02:39]} 15. a3 {[%clk 0:01:35]}  Rfd8 {[%clk 0:02:36]} 16. b4 {[%clk 0:01:33]}  Qa4 {[%clk 0:02:35]} 17. Rad1 {[%clk 0:01:30]}  a5 {[%clk 0:02:34]} 18. h4 {[%clk 0:01:20]}  h5 {[%clk 0:02:30]} 19. Bf3 {[%clk 0:01:00]}  axb4 {[%clk 0:02:29]} 20. Bxh5 {[%clk 0:01:00]}  bxa3 {[%clk 0:02:26]} 21. Ba1 {[%clk 0:00:58]}  Qxe4 {[%clk 0:02:25]} 0-1


[Site "https://www.chess.com"]

[Event "Titled Tuesday Blitz May 4 2021"]
[White "Petrova, Irina"]
[Black "San, Thit Lwin"]
[WhiteFideId "14124122"]
[BlackFideId "13001272"]
[WhiteElo "2022"]
[BlackElo "2232"]
[Result "0-1"]
[Round "07"]
[TimeControl "180+1"]
[Date "2021.05.04"]
[WhiteClock "0:00:01"]
[BlackClock "0:00:08"]

1. e4 {[%clk 0:03:00]}  Nf6 {[%clk 0:03:00]} 2. d3 {[%clk 0:02:58]}  d5 {[%clk 0:03:00]} 3. Nd2 {[%clk 0:02:57]}  c5 {[%clk 0:03:00]} 4. e5 {[%clk 0:02:56]}  Nfd7 {[%clk 0:03:00]} 5. Ngf3 {[%clk 0:02:57]}  e6 {[%clk 0:03:00]} 6. g3 {[%clk 0:02:54]}  Nc6 {[%clk 0:03:00]} 7. Qe2 {[%clk 0:02:53]}  Qc7 {[%clk 0:02:59]} 8. Bg2 {[%clk 0:02:48]}  Ndxe5 {[%clk 0:02:59]} 9. O-O {[%clk 0:02:47]}  Bd6 {[%clk 0:02:51]} 10. Nxe5 {[%clk 0:02:42]}  Bxe5 {[%clk 0:02:47]} 11. Nb3 {[%clk 0:02:32]}  b6 {[%clk 0:02:41]} 12. f4 {[%clk 0:02:29]}  Bd6 {[%clk 0:02:35]} 13. Bxd5 {[%clk 0:02:27]}  O-O {[%clk 0:02:31]} 14. Be4 {[%clk 0:02:24]}  Bb7 {[%clk 0:02:29]} 15. Bd2 {[%clk 0:02:12]}  Ne7 {[%clk 0:02:28]} 16. Bc3 {[%clk 0:02:08]}  Rfd8 {[%clk 0:02:25]} 17. Nd2 {[%clk 0:01:55]}  Nd5 {[%clk 0:02:20]} 18. Rae1 {[%clk 0:01:28]}  Rac8 {[%clk 0:02:15]} 19. Qh5 {[%clk 0:01:24]}  g6 {[%clk 0:02:09]} 20. Qh6 {[%clk 0:01:22]}  Bf8 {[%clk 0:02:01]} 21. Qg5 {[%clk 0:01:09]}  Nxc3 {[%clk 0:01:55]} 22. bxc3 {[%clk 0:01:10]}  Bg7 {[%clk 0:01:50]} 23. Bxb7 {[%clk 0:01:06]}  Qxb7 {[%clk 0:01:48]} 24. Ne4 {[%clk 0:01:07]}  h6 {[%clk 0:01:41]} 25. Qh4 {[%clk 0:01:01]}  Qc7 {[%clk 0:01:02]} 26. a4 {[%clk 0:00:49]}  a6 {[%clk 0:01:00]} 27. g4 {[%clk 0:00:42]}  b5 {[%clk 0:00:47]} 28. axb5 {[%clk 0:00:41]}  axb5 {[%clk 0:00:46]} 29. f5 {[%clk 0:00:40]}  exf5 {[%clk 0:00:39]} 30. gxf5 {[%clk 0:00:41]}  Qb6 {[%clk 0:00:35]} 31. f6 {[%clk 0:00:27]}  Bf8 {[%clk 0:00:34]} 32. Qg4 {[%clk 0:00:19]}  c4+ {[%clk 0:00:33]} 33. d4 {[%clk 0:00:19]}  b4 {[%clk 0:00:33]} 34. Rb1 {[%clk 0:00:13]}  Qa7 {[%clk 0:00:24]} 35. cxb4 {[%clk 0:00:12]}  Qxd4+ {[%clk 0:00:23]} 36. Kh1 {[%clk 0:00:11]}  h5 {[%clk 0:00:22]} 37. Qf4 {[%clk 0:00:09]}  c3 {[%clk 0:00:20]} 38. b5 {[%clk 0:00:08]}  Bd6 {[%clk 0:00:18]} 39. Qh6 {[%clk 0:00:08]}  Bf8 {[%clk 0:00:16]} 40. Qf4 {[%clk 0:00:07]}  Bd6 {[%clk 0:00:16]} 41. Nxd6 {[%clk 0:00:07]}  Qxd6 {[%clk 0:00:15]} 42. Qxd6 {[%clk 0:00:06]}  Rxd6 {[%clk 0:00:16]} 43. Rf3 {[%clk 0:00:06]}  Rb6 {[%clk 0:00:14]} 44. Kg2 {[%clk 0:00:05]}  Rc5 {[%clk 0:00:14]} 45. Kg3 {[%clk 0:00:03]}  g5 {[%clk 0:00:12]} 46. Kf2 {[%clk 0:00:03]}  Kh7 {[%clk 0:00:12]} 47. Ke2 {[%clk 0:00:02]}  Kg6 {[%clk 0:00:12]} 48. Kd3 {[%clk 0:00:02]}  Rbxb5 {[%clk 0:00:11]} 49. Rxb5 {[%clk 0:00:03]}  Rxb5 {[%clk 0:00:11]} 50. Kxc3 {[%clk 0:00:03]}  Rf5 {[%clk 0:00:11]} 51. Rd3 {[%clk 0:00:03]}  Rxf6 {[%clk 0:00:11]} 52. Kd2 {[%clk 0:00:03]}  Rc6 {[%clk 0:00:11]} 53. c3 {[%clk 0:00:03]}  g4 {[%clk 0:00:11]} 54. Ke3 {[%clk 0:00:03]}  f5 {[%clk 0:00:12]} 55. Kf4 {[%clk 0:00:03]}  Rc4+ {[%clk 0:00:11]} 56. Ke5 {[%clk 0:00:03]}  Kg5 {[%clk 0:00:11]} 57. Kd5 {[%clk 0:00:03]}  Rc8 {[%clk 0:00:10]} 58. c4 {[%clk 0:00:03]}  h4 {[%clk 0:00:11]} 59. c5 {[%clk 0:00:02]}  f4 {[%clk 0:00:11]} 60. c6 {[%clk 0:00:02]}  g3 {[%clk 0:00:12]} 61. hxg3 {[%clk 0:00:02]}  hxg3 {[%clk 0:00:12]} 62. Ke4 {[%clk 0:00:02]}  Re8+ {[%clk 0:00:11]} 63. Kf3 {[%clk 0:00:02]}  Re1 {[%clk 0:00:09]} 64. Kg2 {[%clk 0:00:02]}  Rc1 {[%clk 0:00:09]} 65. Rd5+ {[%clk 0:00:02]}  Kg4 {[%clk 0:00:08]} 66. c7 {[%clk 0:00:01]}  Rc2+ {[%clk 0:00:08]} 0-1


[Site "https://www.chess.com"]

[Event "Titled Tuesday Blitz May 4 2021"]
[White "Pile, Richard"]
[Black "Svane, Rasmus"]
[WhiteFideId "624110"]
[BlackFideId "4657101"]
[WhiteElo "2376"]
[BlackElo "2669"]
[Result "0-1"]
[Round "07"]
[TimeControl "180+1"]
[Date "2021.05.04"]
[WhiteClock "0:01:38"]
[BlackClock "0:02:08"]

1. e4 {[%clk 0:03:00]}  c6 {[%clk 0:03:00]} 2. Nc3 {[%clk 0:03:00]}  d5 {[%clk 0:03:01]} 3. Nf3 {[%clk 0:03:00]}  dxe4 {[%clk 0:03:01]} 4. Nxe4 {[%clk 0:03:01]}  Nf6 {[%clk 0:03:02]} 5. Nxf6+ {[%clk 0:02:59]}  exf6 {[%clk 0:03:03]} 6. Bc4 {[%clk 0:02:59]}  Bd6 {[%clk 0:03:04]} 7. Qe2+ {[%clk 0:02:59]}  Be7 {[%clk 0:03:04]} 8. O-O {[%clk 0:02:55]}  O-O {[%clk 0:03:05]} 9. Re1 {[%clk 0:02:55]}  Bd6 {[%clk 0:03:06]} 10. h3 {[%clk 0:02:50]}  Na6 {[%clk 0:03:06]} 11. d4 {[%clk 0:02:39]}  Nc7 {[%clk 0:03:06]} 12. a4 {[%clk 0:02:36]}  Re8 {[%clk 0:02:57]} 13. Qd1 {[%clk 0:02:35]}  Bf5 {[%clk 0:02:57]} 14. Rxe8+ {[%clk 0:02:33]}  Qxe8 {[%clk 0:02:58]} 15. Bd3 {[%clk 0:02:32]}  Be6 {[%clk 0:02:53]} 16. Bd2 {[%clk 0:02:29]}  Qd7 {[%clk 0:02:54]} 17. Qf1 {[%clk 0:02:25]}  Rd8 {[%clk 0:02:39]} 18. Re1 {[%clk 0:02:23]}  Nd5 {[%clk 0:02:39]} 19. c3 {[%clk 0:02:19]}  h6 {[%clk 0:02:36]} 20. Bc1 {[%clk 0:02:12]}  Nb6 {[%clk 0:02:31]} 21. a5 {[%clk 0:02:04]}  Nd5 {[%clk 0:02:31]} 22. Bd2 {[%clk 0:01:56]}  a6 {[%clk 0:02:22]} 23. b4 {[%clk 0:01:51]}  Nf4 {[%clk 0:02:17]} 24. Bc4 {[%clk 0:01:47]}  Nxh3+ {[%clk 0:02:11]} 25. Kh1 {[%clk 0:01:38]}  Nxf2+ {[%clk 0:02:08]} 0-1


[Site "https://www.chess.com"]

[Event "Titled Tuesday Blitz May 4 2021"]
[White "Prydun, Andriy"]
[Black "Kett, Tim"]
[WhiteFideId "14145898"]
[BlackFideId "1801210"]
[WhiteElo "2033"]
[BlackElo "2098"]
[Result "1/2-1/2"]
[Round "07"]
[TimeControl "180+1"]
[Date "2021.05.04"]
[WhiteClock "0:00:06"]
[BlackClock "0:00:27"]

1. d4 {[%clk 0:00:16]}  f5 {[%clk 0:02:57]} 2. Nc3 {[%clk 0:00:17]}  d5 {[%clk 0:02:56]} 3. Bg5 {[%clk 0:00:17]}  Nf6 {[%clk 0:02:48]} 4. Bxf6 {[%clk 0:00:17]}  exf6 {[%clk 0:02:47]} 5. e3 {[%clk 0:00:18]}  c6 {[%clk 0:02:43]} 6. Bd3 {[%clk 0:00:18]}  Be6 {[%clk 0:02:42]} 7. Qf3 {[%clk 0:00:18]}  Qd7 {[%clk 0:02:35]} 8. h4 {[%clk 0:00:19]}  Na6 {[%clk 0:02:31]} 9. a3 {[%clk 0:00:17]}  Nc7 {[%clk 0:02:26]} 10. h5 {[%clk 0:00:17]}  O-O-O {[%clk 0:02:19]} 11. Nge2 {[%clk 0:00:17]}  Bd6 {[%clk 0:02:17]} 12. O-O-O {[%clk 0:00:15]}  g5 {[%clk 0:02:06]} 13. hxg6 {[%clk 0:00:15]}  hxg6 {[%clk 0:02:06]} 14. g3 {[%clk 0:00:15]}  Kb8 {[%clk 0:01:59]} 15. Rxh8 {[%clk 0:00:14]}  Rxh8 {[%clk 0:01:58]} 16. Rh1 {[%clk 0:00:15]}  Qg7 {[%clk 0:01:52]} 17. Nf4 {[%clk 0:00:15]}  Bf7 {[%clk 0:01:45]} 18. Be2 {[%clk 0:00:06]}  a6 {[%clk 0:01:41]} 19. Qg2 {[%clk 0:00:03]}  Nb5 {[%clk 0:01:33]} 20. Nxb5 {[%clk 0:00:03]}  axb5 {[%clk 0:01:33]} 21. Rh2 {[%clk 0:00:03]}  g5 {[%clk 0:01:20]} 22. Nd3 {[%clk 0:00:03]}  Bg6 {[%clk 0:01:01]} 23. Qh1 {[%clk 0:00:03]}  Rxh2 {[%clk 0:01:00]} 24. Qxh2 {[%clk 0:00:04]}  f4 {[%clk 0:00:54]} 25. gxf4 {[%clk 0:00:04]}  Bxd3 {[%clk 0:00:52]} 26. Bxd3 {[%clk 0:00:04]}  gxf4 {[%clk 0:00:50]} 27. exf4 {[%clk 0:00:04]}  Ka7 {[%clk 0:00:32]} 28. Kb1 {[%clk 0:00:05]}  Qg4 {[%clk 0:00:30]} 29. Qg3 {[%clk 0:00:05]}  Qxf4 {[%clk 0:00:29]} 30. Qxf4 {[%clk 0:00:05]}  Bxf4 {[%clk 0:00:28]} 31. c3 {[%clk 0:00:06]}  Kb6 {[%clk 0:00:28]} 32. Bf5 {[%clk 0:00:06]}  Kc7 {[%clk 0:00:27]} 1/2-1/2


[Site "https://www.chess.com"]